[Event "Titled Tuesday Blitz May 4 2021"]
[White "Rozhkov, Viacheslav"]
[Black "Reinaldovera"]
[WhiteFideId "4181484"]
[WhiteElo "2324"]
[BlackElo "2297"]
[Result "1-0"]
[Round "07"]
[TimeControl "180+1"]
[Date "2021.05.04"]
[WhiteClock "0:00:11"]
[BlackClock "0:00:01"]

1. e4 {[%clk 0:03:00]}  c5 {[%clk 0:02:57]} 2. Nf3 {[%clk 0:03:00]}  d6 {[%clk 0:02:56]} 3. d4 {[%clk 0:03:00]}  cxd4 {[%clk 0:02:55]} 4. Nxd4 {[%clk 0:03:01]}  Nf6 {[%clk 0:02:55]} 5. Nc3 {[%clk 0:03:01]}  e6 {[%clk 0:02:54]} 6. g4 {[%clk 0:03:00]}  h6 {[%clk 0:02:52]} 7. Bg2 {[%clk 0:03:00]}  Nc6 {[%clk 0:02:52]} 8. h3 {[%clk 0:02:56]}  Bd7 {[%clk 0:02:47]} 9. O-O {[%clk 0:02:56]}  g5 {[%clk 0:02:42]} 10. Be3 {[%clk 0:02:52]}  a6 {[%clk 0:02:41]} 11. Qe2 {[%clk 0:02:51]}  Ne5 {[%clk 0:02:32]} 12. Rad1 {[%clk 0:02:50]}  Qc7 {[%clk 0:02:30]} 13. Bc1 {[%clk 0:02:49]}  Be7 {[%clk 0:02:25]} 14. f4 {[%clk 0:02:47]}  gxf4 {[%clk 0:02:23]} 15. Bxf4 {[%clk 0:02:48]}  O-O-O {[%clk 0:02:12]} 16. Nb3 {[%clk 0:02:30]}  Rdg8 {[%clk 0:02:07]} 17. Qf2 {[%clk 0:02:16]}  Kb8 {[%clk 0:02:02]} 18. Rd2 {[%clk 0:01:49]}  Be8 {[%clk 0:01:38]} 19. Rfd1 {[%clk 0:01:48]}  Nfd7 {[%clk 0:01:12]} 20. Rd4 {[%clk 0:01:38]}  h5 {[%clk 0:01:06]} 21. g5 {[%clk 0:01:36]}  Bxg5 {[%clk 0:01:04]} 22. Rxd6 {[%clk 0:01:32]}  Bxf4 {[%clk 0:00:56]} 23. Qxf4 {[%clk 0:01:31]}  Rg6 {[%clk 0:00:51]} 24. Kh1 {[%clk 0:00:55]}  Rhg8 {[%clk 0:00:51]} 25. R6d2 {[%clk 0:00:53]}  Nc4 {[%clk 0:00:38]} 26. Qxc7+ {[%clk 0:00:52]}  Kxc7 {[%clk 0:00:39]} 27. Rf2 {[%clk 0:00:47]}  Rxg2 {[%clk 0:00:35]} 28. Rxg2 {[%clk 0:00:46]}  Rxg2 {[%clk 0:00:32]} 29. Kxg2 {[%clk 0:00:47]}  Ne3+ {[%clk 0:00:31]} 30. Kg3 {[%clk 0:00:46]}  Nxd1 {[%clk 0:00:27]} 31. Nxd1 {[%clk 0:00:46]}  f6 {[%clk 0:00:22]} 32. Nd4 {[%clk 0:00:43]}  Kd6 {[%clk 0:00:22]} 33. Ne3 {[%clk 0:00:44]}  Bg6 {[%clk 0:00:21]} 34. c3 {[%clk 0:00:31]}  Bxe4 {[%clk 0:00:19]} 35. Nc4+ {[%clk 0:00:32]}  Ke7 {[%clk 0:00:19]} 36. Kh4 {[%clk 0:00:28]}  Bd5 {[%clk 0:00:17]} 37. Ne3 {[%clk 0:00:25]}  Bxa2 {[%clk 0:00:16]} 38. Kxh5 {[%clk 0:00:25]}  b5 {[%clk 0:00:15]} 39. Kg6 {[%clk 0:00:24]}  f5 {[%clk 0:00:14]} 40. h4 {[%clk 0:00:23]}  f4 {[%clk 0:00:14]} 41. Ng4 {[%clk 0:00:23]}  Bb1+ {[%clk 0:00:14]} 42. Kg7 {[%clk 0:00:22]}  e5 {[%clk 0:00:14]} 43. Ne2 {[%clk 0:00:17]}  f3 {[%clk 0:00:13]} 44. Ng3 {[%clk 0:00:16]}  e4 {[%clk 0:00:09]} 45. h5 {[%clk 0:00:15]}  Ke6 {[%clk 0:00:04]} 46. h6 {[%clk 0:00:15]}  e3 {[%clk 0:00:04]} 47. Nxe3 {[%clk 0:00:15]}  Ne5 {[%clk 0:00:02]} 48. h7 {[%clk 0:00:14]}  Bxh7 {[%clk 0:00:01]} 49. Kxh7 {[%clk 0:00:15]}  f2 {[%clk 0:00:01]} 50. Ne4 {[%clk 0:00:12]}  Nc4 {[%clk 0:00:01]} 51. Nf1 {[%clk 0:00:11]}  Nxb2 {[%clk 0:00:01]} 52. Nxf2 {[%clk 0:00:11]}  Na4 {[%clk 0:00:01]} 53. Nd1 {[%clk 0:00:11]}  Kd5 {[%clk 0:00:02]} 54. Nd2 {[%clk 0:00:10]}  Kc5 {[%clk 0:00:02]} 55. Kg6 {[%clk 0:00:10]}  Nxc3 {[%clk 0:00:02]} 56. Nxc3 {[%clk 0:00:10]}  b4 {[%clk 0:00:02]} 57. Nce4+ {[%clk 0:00:09]}  Kd4 {[%clk 0:00:02]} 58. Kf5 {[%clk 0:00:10]}  a5 {[%clk 0:00:01]} 59. Nb3+ {[%clk 0:00:10]}  Kd3 {[%clk 0:00:01]} 60. Nxa5 {[%clk 0:00:11]} 1-0


[Site "https://www.chess.com"]

[Event "Titled Tuesday Blitz May 4 2021"]
[White "Rustemov, Alexander"]
[Black "Zhurbinsky, David"]
[WhiteFideId "4119002"]
[BlackFideId "2072904"]
[WhiteElo "2619"]
[BlackElo "2474"]
[Result "1-0"]
[Round "07"]
[TimeControl "180+1"]
[Date "2021.05.04"]
[WhiteClock "0:00:28"]
[BlackClock "0:00:34"]

1. d4 {[%clk 0:03:00]}  Nf6 {[%clk 0:02:59]} 2. c4 {[%clk 0:03:00]}  e6 {[%clk 0:03:00]} 3. Nf3 {[%clk 0:02:59]}  Bb4+ {[%clk 0:03:00]} 4. Bd2 {[%clk 0:02:59]}  Qe7 {[%clk 0:03:00]} 5. g3 {[%clk 0:03:00]}  O-O {[%clk 0:03:00]} 6. Bg2 {[%clk 0:02:59]}  d5 {[%clk 0:03:00]} 7. Qc2 {[%clk 0:02:58]}  Bxd2+ {[%clk 0:02:55]} 8. Nbxd2 {[%clk 0:02:56]}  c6 {[%clk 0:02:47]} 9. O-O {[%clk 0:02:54]}  Nbd7 {[%clk 0:02:47]} 10. e4 {[%clk 0:02:49]}  dxe4 {[%clk 0:02:45]} 11. Nxe4 {[%clk 0:02:50]}  Nxe4 {[%clk 0:02:45]} 12. Qxe4 {[%clk 0:02:49]}  Nf6 {[%clk 0:02:46]} 13. Qe3 {[%clk 0:02:46]}  Rd8 {[%clk 0:02:38]} 14. Rfe1 {[%clk 0:02:41]}  Bd7 {[%clk 0:02:37]} 15. Ne5 {[%clk 0:02:40]}  Be8 {[%clk 0:02:35]} 16. Rad1 {[%clk 0:02:38]}  Rac8 {[%clk 0:02:28]} 17. c5 {[%clk 0:02:35]}  Nd5 {[%clk 0:02:23]} 18. Qa3 {[%clk 0:02:28]}  Qc7 {[%clk 0:02:05]} 19. Nc4 {[%clk 0:02:27]}  b6 {[%clk 0:01:47]} 20. Nd6 {[%clk 0:02:24]}  Rb8 {[%clk 0:01:46]} 21. h4 {[%clk 0:02:19]}  a5 {[%clk 0:01:31]} 22. Rd2 {[%clk 0:02:13]}  b5 {[%clk 0:01:28]} 23. Be4 {[%clk 0:02:01]}  Nf6 {[%clk 0:01:19]} 24. Bb1 {[%clk 0:01:58]}  b4 {[%clk 0:01:10]} 25. Qe3 {[%clk 0:01:57]}  Rxd6 {[%clk 0:01:07]} 26. cxd6 {[%clk 0:01:56]}  Qxd6 {[%clk 0:01:08]} 27. Qe5 {[%clk 0:01:56]}  Qxe5 {[%clk 0:01:02]} 28. dxe5 {[%clk 0:01:55]}  Nd5 {[%clk 0:01:02]} 29. Rc1 {[%clk 0:01:54]}  Kf8 {[%clk 0:01:01]} 30. Rc5 {[%clk 0:01:53]}  Ke7 {[%clk 0:00:58]} 31. Rxa5 {[%clk 0:01:52]}  Rb7 {[%clk 0:00:51]} 32. Be4 {[%clk 0:01:48]}  Nb6 {[%clk 0:00:50]} 33. Rc2 {[%clk 0:01:41]}  Rc7 {[%clk 0:00:49]} 34. Rac5 {[%clk 0:01:39]}  Na4 {[%clk 0:00:45]} 35. Ra5 {[%clk 0:01:30]}  c5 {[%clk 0:00:44]} 36. Bd3 {[%clk 0:01:22]}  f6 {[%clk 0:00:37]} 37. exf6+ {[%clk 0:01:18]}  gxf6 {[%clk 0:00:38]} 38. Bb5 {[%clk 0:01:14]}  Bxb5 {[%clk 0:00:26]} 39. Rxb5 {[%clk 0:01:14]}  Kd6 {[%clk 0:00:25]} 40. Rb8 {[%clk 0:00:58]}  c4 {[%clk 0:00:22]} 41. Rxb4 {[%clk 0:00:57]}  Nc5 {[%clk 0:00:17]} 42. Rbxc4 {[%clk 0:00:57]}  Na6 {[%clk 0:00:18]} 43. Rxc7 {[%clk 0:00:54]}  Nxc7 {[%clk 0:00:19]} 44. Rxc7 {[%clk 0:00:54]}  Kxc7 {[%clk 0:00:19]} 45. Kg2 {[%clk 0:00:54]}  h5 {[%clk 0:00:20]} 46. Kf3 {[%clk 0:00:51]}  f5 {[%clk 0:00:20]} 47. Kf4 {[%clk 0:00:50]}  Kd6 {[%clk 0:00:21]} 48. a4 {[%clk 0:00:50]}  e5+ {[%clk 0:00:22]} 49. Kxf5 {[%clk 0:00:50]}  Kd5 {[%clk 0:00:23]} 50. a5 {[%clk 0:00:48]}  Kd4 {[%clk 0:00:24]} 51. a6 {[%clk 0:00:47]}  e4 {[%clk 0:00:25]} 52. a7 {[%clk 0:00:45]}  e3 {[%clk 0:00:25]} 53. fxe3+ {[%clk 0:00:45]}  Kxe3 {[%clk 0:00:26]} 54. a8=Q {[%clk 0:00:45]}  Kf2 {[%clk 0:00:27]} 55. Kf4 {[%clk 0:00:44]}  Kg1 {[%clk 0:00:27]} 56. Qf3 {[%clk 0:00:36]}  Kh2 {[%clk 0:00:28]} 57. Qe2+ {[%clk 0:00:36]}  Kh3 {[%clk 0:00:29]} 58. Qxh5 {[%clk 0:00:35]}  Kg2 {[%clk 0:00:28]} 59. b4 {[%clk 0:00:30]}  Kh3 {[%clk 0:00:29]} 60. b5 {[%clk 0:00:29]}  Kg2 {[%clk 0:00:30]} 61. b6 {[%clk 0:00:29]}  Kh3 {[%clk 0:00:31]} 62. b7 {[%clk 0:00:29]}  Kh2 {[%clk 0:00:32]} 63. b8=Q {[%clk 0:00:28]}  Kh3 {[%clk 0:00:33]} 64. Qc8+ {[%clk 0:00:28]}  Kg2 {[%clk 0:00:34]} 65. Qe2+ {[%clk 0:00:28]}  Kh1 {[%clk 0:00:34]} 66. Qc1# {[%clk 0:00:28]} 1-0


[Site "https://www.chess.com"]

[Event "Titled Tuesday Blitz May 4 2021"]
[White "Rytenko, Vsevolod"]
[Black "Klimkowski, Jan"]
[WhiteFideId "14133040"]
[BlackFideId "21856222"]
[WhiteElo "2228"]
[BlackElo "1903"]
[Result "0-1"]
[Round "07"]
[TimeControl "180+1"]
[Date "2021.05.04"]
[WhiteClock "0:00:18"]
[BlackClock "0:01:53"]

1. d4 {[%clk 0:03:00]}  Nf6 {[%clk 0:03:00]} 2. Nc3 {[%clk 0:03:00]}  d5 {[%clk 0:02:59]} 3. Bg5 {[%clk 0:03:00]}  e6 {[%clk 0:02:58]} 4. e4 {[%clk 0:03:00]}  dxe4 {[%clk 0:02:58]} 5. Nxe4 {[%clk 0:03:00]}  Nbd7 {[%clk 0:02:59]} 6. Nxf6+ {[%clk 0:02:59]}  Nxf6 {[%clk 0:02:58]} 7. Nf3 {[%clk 0:02:59]}  Be7 {[%clk 0:02:58]} 8. c3 {[%clk 0:02:55]}  O-O {[%clk 0:02:58]} 9. Bd3 {[%clk 0:02:55]}  b6 {[%clk 0:02:57]} 10. Qe2 {[%clk 0:02:55]}  Bb7 {[%clk 0:02:58]} 11. O-O-O {[%clk 0:02:55]}  Qd5 {[%clk 0:02:57]} 12. Kb1 {[%clk 0:02:47]}  Qa5 {[%clk 0:02:51]} 13. Bxf6 {[%clk 0:02:39]}  Bxf6 {[%clk 0:02:50]} 14. Be4 {[%clk 0:02:40]}  Bd5 {[%clk 0:02:48]} 15. Bxd5 {[%clk 0:02:34]}  exd5 {[%clk 0:02:48]} 16. g4 {[%clk 0:02:30]}  Rfe8 {[%clk 0:02:44]} 17. Qd3 {[%clk 0:02:30]}  g6 {[%clk 0:02:42]} 18. h4 {[%clk 0:02:29]}  Re4 {[%clk 0:02:41]} 19. g5 {[%clk 0:02:20]}  Bg7 {[%clk 0:02:40]} 20. h5 {[%clk 0:02:20]}  Rae8 {[%clk 0:02:39]} 21. hxg6 {[%clk 0:02:21]}  hxg6 {[%clk 0:02:39]} 22. Nh2 {[%clk 0:02:01]}  c5 {[%clk 0:02:30]} 23. Qh3 {[%clk 0:01:48]}  cxd4 {[%clk 0:02:00]} 24. cxd4 {[%clk 0:01:39]}  Re2 {[%clk 0:01:56]} 25. Qd7 {[%clk 0:00:18]}  Qb4 {[%clk 0:01:53]} 26. b3 {[%clk 0:00:18]}  Qc3 {[%clk 0:01:53]} 0-1


[Site "https://www.chess.com"]

[Event "Titled Tuesday Blitz May 4 2021"]
[White "Saraci, Nderim"]
[Black "Ivanisevic, Ivan"]
[WhiteFideId "6351921"]
[BlackFideId "912417"]
[WhiteElo "2486"]
[BlackElo "2525"]
[Result "1-0"]
[Round "07"]
[TimeControl "180+1"]
[Date "2021.05.04"]
[WhiteClock "0:00:12"]
[BlackClock "0:00:22"]

1. d4 {[%clk 0:02:52]}  Nf6 {[%clk 0:02:59]} 2. Nf3 {[%clk 0:02:48]}  c5 {[%clk 0:02:58]} 3. c4 {[%clk 0:02:46]}  cxd4 {[%clk 0:02:57]} 4. Nxd4 {[%clk 0:02:46]}  Nc6 {[%clk 0:02:58]} 5. Nc3 {[%clk 0:02:46]}  e6 {[%clk 0:02:58]} 6. g3 {[%clk 0:02:46]}  Bc5 {[%clk 0:02:58]} 7. e3 {[%clk 0:02:43]}  O-O {[%clk 0:02:56]} 8. Bg2 {[%clk 0:02:43]}  d5 {[%clk 0:02:57]} 9. cxd5 {[%clk 0:02:42]}  exd5 {[%clk 0:02:57]} 10. Nb3 {[%clk 0:02:39]}  Bb4 {[%clk 0:02:54]} 11. O-O {[%clk 0:02:38]}  Bg4 {[%clk 0:02:51]} 12. Qd3 {[%clk 0:02:32]}  Ne5 {[%clk 0:02:45]} 13. Qd4 {[%clk 0:02:29]}  Bxc3 {[%clk 0:02:35]} 14. Qxc3 {[%clk 0:02:03]}  Re8 {[%clk 0:02:35]} 15. Nd4 {[%clk 0:01:55]}  Rc8 {[%clk 0:02:34]} 16. Qb4 {[%clk 0:01:54]}  Qd7 {[%clk 0:02:34]} 17. Bd2 {[%clk 0:01:49]}  h5 {[%clk 0:02:28]} 18. Qb5 {[%clk 0:01:41]}  Qxb5 {[%clk 0:02:24]} 19. Nxb5 {[%clk 0:01:42]}  Rc2 {[%clk 0:02:24]} 20. Bc3 {[%clk 0:01:40]}  Be2 {[%clk 0:02:16]} 21. Nd4 {[%clk 0:00:46]}  Bxf1 {[%clk 0:02:15]} 22. Nxc2 {[%clk 0:00:42]}  Bxg2 {[%clk 0:02:13]} 23. Kxg2 {[%clk 0:00:43]}  Ne4 {[%clk 0:01:53]} 24. Bxe5 {[%clk 0:00:37]}  Rxe5 {[%clk 0:01:54]} 25. Rc1 {[%clk 0:00:34]}  Re6 {[%clk 0:01:48]} 26. Nd4 {[%clk 0:00:34]}  Ra6 {[%clk 0:01:46]} 27. a3 {[%clk 0:00:33]}  Rb6 {[%clk 0:01:46]} 28. b3 {[%clk 0:00:33]}  g6 {[%clk 0:01:35]} 29. Rc2 {[%clk 0:00:31]}  Kg7 {[%clk 0:01:34]} 30. h3 {[%clk 0:00:30]}  Nf6 {[%clk 0:01:22]} 31. Rc7 {[%clk 0:00:28]}  Ne4 {[%clk 0:01:20]} 32. g4 {[%clk 0:00:23]}  hxg4 {[%clk 0:01:19]} 33. hxg4 {[%clk 0:00:24]}  Nd2 {[%clk 0:01:18]} 34. b4 {[%clk 0:00:10]}  Nc4 {[%clk 0:01:18]} 35. Rc5 {[%clk 0:00:09]}  Nxa3 {[%clk 0:01:16]} 36. Rxd5 {[%clk 0:00:09]}  a6 {[%clk 0:01:06]} 37. g5 {[%clk 0:00:09]}  Rxb4 {[%clk 0:01:01]} 38. Rd7 {[%clk 0:00:09]}  Rb6 {[%clk 0:01:01]} 39. f4 {[%clk 0:00:09]}  Nb5 {[%clk 0:01:01]} 40. Nf3 {[%clk 0:00:08]}  Re6 {[%clk 0:00:56]} 41. Ne5 {[%clk 0:00:08]}  Nd6 {[%clk 0:00:56]} 42. Kf3 {[%clk 0:00:08]}  Kf8 {[%clk 0:00:55]} 43. Rd8+ {[%clk 0:00:08]}  Ke7 {[%clk 0:00:55]} 44. Ra8 {[%clk 0:00:07]}  Ne8 {[%clk 0:00:50]} 45. Ra7 {[%clk 0:00:07]}  Rb6 {[%clk 0:00:49]} 46. Ra8 {[%clk 0:00:07]}  Rb5 {[%clk 0:00:49]} 47. Nc4 {[%clk 0:00:06]}  Rb4 {[%clk 0:00:47]} 48. Ne5 {[%clk 0:00:06]}  Nd6 {[%clk 0:00:46]} 49. Rh8 {[%clk 0:00:05]}  Rb3 {[%clk 0:00:45]} 50. Rh7 {[%clk 0:00:05]}  Ke6 {[%clk 0:00:45]} 51. Rh8 {[%clk 0:00:05]}  a5 {[%clk 0:00:45]} 52. Ra8 {[%clk 0:00:05]}  b6 {[%clk 0:00:41]} 53. Ra7 {[%clk 0:00:05]}  Rc3 {[%clk 0:00:34]} 54. Ra6 {[%clk 0:00:03]}  Rb3 {[%clk 0:00:30]} 55. Nc6 {[%clk 0:00:04]}  Nf5 {[%clk 0:00:29]} 56. Kf2 {[%clk 0:00:01]}  Nxe3 {[%clk 0:00:25]} 57. Nd4+ {[%clk 0:00:01]}  Kd5 {[%clk 0:00:24]} 58. Nxb3 {[%clk 0:00:01]}  Nc4 {[%clk 0:00:22]} 59. Nd2 {[%clk 0:00:02]}  Nxd2 {[%clk 0:00:21]} 60. Rxb6 {[%clk 0:00:03]}  Nc4 {[%clk 0:00:21]} 61. Ra6 {[%clk 0:00:03]}  Kc5 {[%clk 0:00:21]} 62. Ra7 {[%clk 0:00:03]}  Kb5 {[%clk 0:00:20]} 63. Ke2 {[%clk 0:00:03]}  a4 {[%clk 0:00:20]} 64. Kd3 {[%clk 0:00:04]}  Na5 {[%clk 0:00:20]} 65. Kc3 {[%clk 0:00:03]}  a3 {[%clk 0:00:20]} 66. Rxf7 {[%clk 0:00:03]}  Ka4 {[%clk 0:00:20]} 67. Rf6 {[%clk 0:00:02]}  Nb3 {[%clk 0:00:18]} 68. Rxg6 {[%clk 0:00:02]}  a2 {[%clk 0:00:18]} 69. Ra6+ {[%clk 0:00:02]}  Kb5 {[%clk 0:00:18]} 70. Rxa2 {[%clk 0:00:02]}  Nc5 {[%clk 0:00:19]} 71. Re2 {[%clk 0:00:02]}  Nd7 {[%clk 0:00:19]} 72. Kd4 {[%clk 0:00:03]}  Kc6 {[%clk 0:00:18]} 73. Re5 {[%clk 0:00:04]}  Kd6 {[%clk 0:00:18]} 74. Rd5+ {[%clk 0:00:04]}  Ke6 {[%clk 0:00:18]} 75. Rxd7 {[%clk 0:00:05]}  Kxd7 {[%clk 0:00:19]} 76. Ke5 {[%clk 0:00:06]}  Ke7 {[%clk 0:00:20]} 77. f5 {[%clk 0:00:06]}  Kf7 {[%clk 0:00:20]} 78. f6 {[%clk 0:00:07]}  Kg8 {[%clk 0:00:21]} 79. Ke6 {[%clk 0:00:08]}  Kh8 {[%clk 0:00:21]} 80. f7 {[%clk 0:00:08]}  Kg7 {[%clk 0:00:21]} 81. Ke7 {[%clk 0:00:09]}  Kg6 {[%clk 0:00:20]} 82. f8=Q {[%clk 0:00:10]}  Kh5 {[%clk 0:00:20]} 83. Qf6 {[%clk 0:00:11]}  Kg4 {[%clk 0:00:21]} 84. g6 {[%clk 0:00:12]}  Kh5 {[%clk 0:00:21]} 85. g7 {[%clk 0:00:13]}  Kg4 {[%clk 0:00:21]} 86. g8=Q+ {[%clk 0:00:12]}  Kh5 {[%clk 0:00:22]} 87. Qfh8# {[%clk 0:00:12]} 1-0


[Site "https://www.chess.com"]

[Event "Titled Tuesday Blitz May 4 2021"]
[White "Sargissyan, Sargis"]
[Black "Roebers, Jan"]
[WhiteFideId "13303210"]
[BlackFideId "1007815"]
[WhiteElo "2174"]
[BlackElo "2211"]
[Result "0-1"]
[Round "07"]
[TimeControl "180+1"]
[Date "2021.05.04"]
[WhiteClock "0:01:12"]
[BlackClock "0:01:44"]

1. e4 {[%clk 0:02:27]}  e5 {[%clk 0:02:58]} 2. Nf3 {[%clk 0:02:27]}  Nc6 {[%clk 0:02:58]} 3. Bb5 {[%clk 0:02:28]}  a6 {[%clk 0:02:58]} 4. Ba4 {[%clk 0:02:28]}  Nf6 {[%clk 0:02:57]} 5. O-O {[%clk 0:02:28]}  Be7 {[%clk 0:02:58]} 6. d3 {[%clk 0:02:28]}  b5 {[%clk 0:02:58]} 7. Bb3 {[%clk 0:02:28]}  O-O {[%clk 0:02:57]} 8. c3 {[%clk 0:02:29]}  d5 {[%clk 0:02:57]} 9. exd5 {[%clk 0:02:27]}  Nxd5 {[%clk 0:02:56]} 10. d4 {[%clk 0:02:28]}  exd4 {[%clk 0:02:53]} 11. Nxd4 {[%clk 0:02:28]}  Nxd4 {[%clk 0:02:46]} 12. Qxd4 {[%clk 0:02:28]}  Bb7 {[%clk 0:02:46]} 13. Nd2 {[%clk 0:02:12]}  c5 {[%clk 0:02:45]} 14. Qg4 {[%clk 0:02:04]}  f5 {[%clk 0:02:41]} 15. Bxd5+ {[%clk 0:01:55]}  Qxd5 {[%clk 0:02:37]} 16. Qf3 {[%clk 0:01:49]}  Qxf3 {[%clk 0:02:34]} 17. Nxf3 {[%clk 0:01:50]}  Bxf3 {[%clk 0:02:33]} 18. gxf3 {[%clk 0:01:51]}  Bf6 {[%clk 0:02:28]} 19. Be3 {[%clk 0:01:50]}  c4 {[%clk 0:02:26]} 20. Rad1 {[%clk 0:01:47]}  Rfd8 {[%clk 0:02:21]} 21. Bb6 {[%clk 0:01:43]}  Rxd1 {[%clk 0:02:19]} 22. Rxd1 {[%clk 0:01:44]}  Re8 {[%clk 0:02:16]} 23. Kf1 {[%clk 0:01:39]}  Be5 {[%clk 0:02:12]} 24. h3 {[%clk 0:01:36]}  b4 {[%clk 0:02:07]} 25. Bd4 {[%clk 0:01:32]}  bxc3 {[%clk 0:02:05]} 26. bxc3 {[%clk 0:01:33]}  Rd8 {[%clk 0:02:00]} 27. Ke2 {[%clk 0:01:28]}  Bxd4 {[%clk 0:02:00]} 28. Rxd4 {[%clk 0:01:24]}  Rxd4 {[%clk 0:01:55]} 29. cxd4 {[%clk 0:01:25]}  Kf7 {[%clk 0:01:55]} 30. Kd2 {[%clk 0:01:26]}  Ke6 {[%clk 0:01:54]} 31. Kc3 {[%clk 0:01:22]}  Kd5 {[%clk 0:01:54]} 32. f4 {[%clk 0:01:16]}  a5 {[%clk 0:01:51]} 33. a4 {[%clk 0:01:15]}  g6 {[%clk 0:01:47]} 34. f3 {[%clk 0:01:13]}  h6 {[%clk 0:01:45]} 35. h4 {[%clk 0:01:12]}  h5 {[%clk 0:01:45]} 36. Kc2 {[%clk 0:01:11]}  Kxd4 {[%clk 0:01:45]} 37. Kd2 {[%clk 0:01:11]}  c3+ {[%clk 0:01:44]} 38. Kc2 {[%clk 0:01:12]}  Kc4 {[%clk 0:01:44]} 39. Kb1 {[%clk 0:01:12]}  Kb3 {[%clk 0:01:44]} 40. Kc1 {[%clk 0:01:12]}  c2 {[%clk 0:01:44]} 0-1


[Site "https://www.chess.com"]

[Event "Titled Tuesday Blitz May 4 2021"]
[White "Schut, Lisa"]
[Black "Matinian, Nikita"]
[WhiteFideId "1019481"]
[BlackFideId "24129100"]
[WhiteElo "2234"]
[BlackElo "2410"]
[Result "0-1"]
[Round "07"]
[TimeControl "180+1"]
[Date "2021.05.04"]
[WhiteClock "0:01:26"]
[BlackClock "0:02:28"]

1. e4 {[%clk 0:03:00]}  d6 {[%clk 0:02:59]} 2. d4 {[%clk 0:03:00]}  g6 {[%clk 0:02:59]} 3. Nc3 {[%clk 0:03:01]}  Bg7 {[%clk 0:02:58]} 4. Be3 {[%clk 0:03:01]}  a6 {[%clk 0:02:58]} 5. Qd2 {[%clk 0:02:58]}  b5 {[%clk 0:02:58]} 6. Bd3 {[%clk 0:02:56]}  Nd7 {[%clk 0:02:57]} 7. Nh3 {[%clk 0:02:48]}  c5 {[%clk 0:02:55]} 8. a4 {[%clk 0:02:34]}  cxd4 {[%clk 0:02:53]} 9. axb5 {[%clk 0:02:24]}  dxe3 {[%clk 0:02:52]} 10. Qxe3 {[%clk 0:02:21]}  Ngf6 {[%clk 0:02:51]} 11. bxa6 {[%clk 0:02:16]}  Nc5 {[%clk 0:02:50]} 12. e5 {[%clk 0:01:55]}  Nxd3+ {[%clk 0:02:37]} 13. cxd3 {[%clk 0:01:52]}  dxe5 {[%clk 0:02:34]} 14. b4 {[%clk 0:01:26]}  Bxa6 {[%clk 0:02:28]} 0-1


[Site "https://www.chess.com"]

[Event "Titled Tuesday Blitz May 4 2021"]
[White "Sellitti, Federico"]
[Black "Abdusattorov, Nodirbek"]
[WhiteFideId "821829"]
[BlackFideId "14204118"]
[WhiteElo "2625"]
[BlackElo "2662"]
[Result "1-0"]
[Round "07"]
[TimeControl "180+1"]
[Date "2021.05.04"]
[WhiteClock "0:00:08"]
[BlackClock "0:00:24"]

1. e4 {[%clk 0:03:00]}  c6 {[%clk 0:02:58]} 2. d4 {[%clk 0:02:59]}  d5 {[%clk 0:02:59]} 3. exd5 {[%clk 0:03:00]}  cxd5 {[%clk 0:02:59]} 4. Bd3 {[%clk 0:03:01]}  Nf6 {[%clk 0:03:00]} 5. Bf4 {[%clk 0:03:00]}  Qb6 {[%clk 0:02:57]} 6. Nc3 {[%clk 0:02:46]}  Bd7 {[%clk 0:02:57]} 7. Rb1 {[%clk 0:02:44]}  Qxd4 {[%clk 0:02:48]} 8. Be3 {[%clk 0:02:39]}  Qb4 {[%clk 0:02:39]} 9. Nf3 {[%clk 0:02:40]}  Nc6 {[%clk 0:02:38]} 10. a3 {[%clk 0:02:37]}  Qa5 {[%clk 0:02:37]} 11. O-O {[%clk 0:02:37]}  e6 {[%clk 0:02:37]} 12. b4 {[%clk 0:02:32]}  Qd8 {[%clk 0:02:34]} 13. b5 {[%clk 0:02:32]}  Na5 {[%clk 0:02:29]} 14. Bd4 {[%clk 0:02:22]}  Rc8 {[%clk 0:02:21]} 15. Qe1 {[%clk 0:02:17]}  Be7 {[%clk 0:02:00]} 16. Ne5 {[%clk 0:02:18]}  O-O {[%clk 0:01:57]} 17. f4 {[%clk 0:02:13]}  Bc5 {[%clk 0:01:48]} 18. Bxc5 {[%clk 0:02:10]}  Rxc5 {[%clk 0:01:49]} 19. g4 {[%clk 0:02:11]}  Qc7 {[%clk 0:01:45]} 20. g5 {[%clk 0:02:05]}  Nh5 {[%clk 0:01:45]} 21. Qh4 {[%clk 0:01:30]}  g6 {[%clk 0:01:42]} 22. Ne2 {[%clk 0:01:30]}  Nc4 {[%clk 0:01:12]} 23. Ng4 {[%clk 0:01:26]}  Nd6 {[%clk 0:01:13]} 24. Ng3 {[%clk 0:01:18]}  Nf5 {[%clk 0:01:05]} 25. Bxf5 {[%clk 0:00:50]}  f6 {[%clk 0:00:51]} 26. Nxh5 {[%clk 0:00:20]}  Be8 {[%clk 0:00:51]} 27. Nhxf6+ {[%clk 0:00:14]}  Kh8 {[%clk 0:00:52]} 28. Nxe8 {[%clk 0:00:12]}  Rxe8 {[%clk 0:00:53]} 29. Bd3 {[%clk 0:00:13]}  Rf8 {[%clk 0:00:46]} 30. Nf6 {[%clk 0:00:13]}  Qf7 {[%clk 0:00:36]} 31. Rf3 {[%clk 0:00:12]}  Rc7 {[%clk 0:00:36]} 32. Rbf1 {[%clk 0:00:12]}  Rfc8 {[%clk 0:00:33]} 33. Rh3 {[%clk 0:00:12]}  Rf8 {[%clk 0:00:33]} 34. Qh6 {[%clk 0:00:11]}  Qg7 {[%clk 0:00:31]} 35. Bxg6 {[%clk 0:00:09]}  Rxf6 {[%clk 0:00:23]} 36. gxf6 {[%clk 0:00:07]}  Qxf6 {[%clk 0:00:24]} 37. Bxh7 {[%clk 0:00:05]}  Qxh6 {[%clk 0:00:24]} 38. Rxh6 {[%clk 0:00:05]}  Kg7 {[%clk 0:00:25]} 39. Rh3 {[%clk 0:00:04]}  Kf6 {[%clk 0:00:25]} 40. Bd3 {[%clk 0:00:05]}  Rc3 {[%clk 0:00:24]} 41. Rg3 {[%clk 0:00:04]}  Rxa3 {[%clk 0:00:23]} 42. Kg2 {[%clk 0:00:04]}  a5 {[%clk 0:00:22]} 43. h4 {[%clk 0:00:04]}  Rc3 {[%clk 0:00:22]} 44. h5 {[%clk 0:00:05]}  a4 {[%clk 0:00:22]} 45. h6 {[%clk 0:00:05]}  Rc8 {[%clk 0:00:22]} 46. h7 {[%clk 0:00:05]}  Rh8 {[%clk 0:00:23]} 47. Rg8 {[%clk 0:00:05]}  Rxh7 {[%clk 0:00:23]} 48. Bxh7 {[%clk 0:00:06]}  e5 {[%clk 0:00:22]} 49. Rd8 {[%clk 0:00:06]}  Ke6 {[%clk 0:00:21]} 50. Bg8+ {[%clk 0:00:05]}  Ke7 {[%clk 0:00:21]} 51. Rxd5 {[%clk 0:00:06]}  exf4 {[%clk 0:00:22]} 52. Rxf4 {[%clk 0:00:06]}  a3 {[%clk 0:00:23]} 53. Re4+ {[%clk 0:00:06]}  Kf8 {[%clk 0:00:23]} 54. Rf5+ {[%clk 0:00:07]}  Kxg8 {[%clk 0:00:23]} 55. Rg4+ {[%clk 0:00:07]}  Kh7 {[%clk 0:00:24]} 56. Rh5# {[%clk 0:00:08]} 1-0


[Site "https://www.chess.com"]